Cogmind - Beta 10.1 @@@ ROGUE MODE // 2020.10.19 @ 02:06:21 Player: Cog Result: Self-destructed Performance ------------- Evolutions (2) 1000 Regions Visited (6) 1200 Robots Destroyed (31) 155 Value Destroyed (591) 591 Prototype IDs (24) 480 Alien Tech Used (0) 0 Bonus (370) 370 TOTAL SCORE: 3796 Bonus ------- Follower Combat Kills 70 Aligned with FarCom 300 Cogmind --------- Core Integrity 486/550 Matter 300/300 Energy 265/265 System Corruption 0% Temperature Cool (0) Movement Rolling (110) Ox2 Location -8/Storage Parts ------- > --- POWER (1) -------- Improved Ion Engine > --- PROPULSION (2) --- Wheel Compact Wheel > --- UTILITY (5) ------ Large Storage Unit High-capacity Storage Unit Targeting Computer Light Armor Plating > --- WEAPON (3) ------- Heavy Assault Rifle Longsword +1 > --- INVENTORY (18) --- Ion Engine Fission Core Fission Core Aluminum Leg Compact Wheel Compact Wheel Heat Sink Improved Heat Sink Targeting Computer Melee Analysis Suite Light Armor Plating Particle Gun Particle Gun Faulty Enhanced Autogun Shock Bomb Launcher Grenade Launcher Datajack Peak State ------------ > --- POWER ------------ Improved Ion Engine > --- PROPULSION ------- Compact Wheel Compact Wheel > --- UTILITY ---------- Heat Sink Large Storage Unit High-capacity Storage Unit Targeting Computer Light Armor Plating > --- WEAPON ----------- Improved Medium Laser Heavy Assault Rifle Longsword +1 > --- INVENTORY -------- Ion Engine Fission Core Fission Core Aluminum Leg Improved Heat Sink Targeting Computer Melee Analysis Suite Light Armor Plating Particle Gun Particle Gun Enhanced Autogun Grenade Launcher Datajack [Rating: 25] Favorites ----------- Power Improved Ion Engine Engine Improved Ion Engine Propulsion Compact Wheel Leg Aluminum Leg Wheel Compact Wheel Utility High-capacity Storage Unit Device Heat Sink Storage High-capacity Storage Unit Processor Targeting Computer Protection Light Armor Plating Weapon Heavy Assault Rifle Energy Gun Small Laser Energy Cannon Beam Cannon Ballistic Gun Heavy Assault Rifle Launcher Grenade Launcher Slashing Weapon Longsword +1 Build | -11 -10 -10 -10 -9 -8 -8 ------- Run | Scr Mat Min Exi Min Mat Sto Slots Evolved 4 | . . . . . 4 . Power . | . . . . . . . Propulsion . | . . . . . . . Utility 3 | . . . . . 3 . Weapon 1 | . . . . . 1 . Parts Attached 25 | . 9 6 1 1 6 2 Power 1 | . . 1 . . . . Engine 1 | . . 1 . . . . Core . | . . . . . . . Reactor . | . . . . . . . Propulsion 6 | . 2 2 . 1 . 1 Treads . | . . . . . . . Leg 1 | . . 1 . . . . Wheel 5 | . 2 1 . 1 . 1 Hover . | . . . . . . . Flight . | . . . . . . . Utility 7 | . 4 . . . 3 . Device 1 | . . . . . 1 . Storage 3 | . 2 . . . 1 . Processor 2 | . 2 . . . . . Hackware . | . . . . . . . Protection 1 | . . . . . 1 . Artifact . | . . . . . . . Weapon 11 | . 3 3 1 . 3 1 Energy Gun 6 | . 2 1 . . 3 . Energy Cannon 1 | . 1 . . . . . Ballistic Gun 1 | . . 1 . . . . Ballistic Cannon . | . . . . . . . Launcher 1 | . . 1 . . . . Special Weapon . | . . . . . . . Impact Weapon . | . . . . . . . Slashing Weapon 2 | . . . 1 . . 1 Piercing Weapon . | . . . . . . . Special Melee Weapon . | . . . . . . . Unidentified Prototypes 1 | . . . . . 1 . Parts Lost 8 | . 2 3 . . . 3 Power . | . . . . . . . Propulsion 3 | . . 2 . . . 1 Utility 1 | . . . . . . 1 Weapon 4 | . 2 1 . . . 1 Highest Loss Streak 3 | . 2 3 . . . 2 Average Slot Usage (%) 98 | . 94 99 99 99 100 96 Engine 13 | . 14 14 14 14 9 9 Leg 10 | . 15 10 14 13 . . Wheel 14 | . 12 17 14 14 18 15 Device 1 | . . . . . 9 8 Storage 14 | . 14 14 14 14 18 18 Processor 11 | . 9 14 14 14 9 9 Protection 1 | . . . . . 9 9 Energy Gun 11 | . 15 14 11 . 10 12 Energy Cannon 1 | . 5 . . . . . Ballistic Gun 10 | . 6 9 14 14 9 9 Slashing Weapon 3 | . . . 2 14 7 5 Naked Turns . | . . . . . . . Heaviest Build 68 | 12 42 43 45 45 68 68 Greatest Support 32 | 20 26 26 16 32 32 32 Greatest Overweight (x) 4 | . 1 2 2 2 2 4 Average Overweight (x) 1 | . . 1 2 1 2 2 Largest Inventory Capacity 18 | 6 12 12 12 12 18 18 Average Capacity 12 | 6 8 12 12 12 17 18 Most Carried 17 | 6 7 12 12 12 15 17 Average Carried 10 | 6 5 9 11 11 11 16 Final Capacity 18 | 6 12 12 12 12 18 18 Final Carried 17 | 6 7 12 12 12 15 17 Class Distribution -------------------- 81% | Mutant 14% | Scavenger-Mutant 4% | Scavenger-Skirmisher Dominant Class ---------------- Mutant | -10/Materials Mutant | -10/Mines Mutant | -10/Exiles Mutant | -9/Mines Scavenger-Mutant | -8/Materials Scavenger-Mutant | -8/Storage Resources | -11 -10 -10 -10 -9 -8 -8 ----------- Run | Scr Mat Min Exi Min Mat Sto Matter Collected 491 | 200 81 55 . 16 79 60 Remotely . | . . . . . . . Salvage Created 867 | . 401 123 . . 81 262 Parts 67 | . 32 9 . . 4 22 Haulers Intercepted 1 | . 1 . . . . . Recyclers Shooed . | . . . . . . . Parts Field Recycled . | . . . . . . . Retrieved Matter . | . . . . . . . Parts Self-Destructed . | . . . . . . . Prevented . | . . . . . . . Kills | -11 -10 -10 -10 -9 -8 -8 ------- Run | Scr Mat Min Exi Min Mat Sto Combat Hostiles Destroyed 21 | . 11 5 . . 1 4 Guns 14 | . 6 3 . . 1 4 Cannons 3 | . 3 . . . . . AOE 4 | . 2 2 . . . . Classes Destroyed 9 | . 5 1 . . . 3 Worker 1 | . . . . . . 1 Builder 2 | . 1 . . . 1 . Hauler 1 | . 1 . . . . . Recycler 1 | . . . . . . 1 Operator 3 | . . . . . . 3 Watcher 2 | . 1 . . . . 1 Swarmer 12 | . 6 3 . . . 3 Grunt 5 | . 5 . . . . . Sentry 4 | . . 2 . . 1 1 Best Kill Streak 8 | . 3 3 . . 2 8 Combat Bots Only 4 | . 3 3 . . 1 4 Max Kills in Single Turn 3 | . 2 2 . . 1 3 Gunslinging . | . . . . . . . Exploded 2 | . 2 2 . . . . Melee . | . . . . . . . Uniques/NPCs Destroyed . | . . . . . . . Combat | -11 -10 -10 -10 -9 -8 -8 -------- Run | Scr Mat Min Exi Min Mat Sto Damage Taken 814 | . 345 150 . . 30 289 Core 228 | . 128 36 . . . 64 Absorbed by Shields . | . . . . . . . Core Remaining (%) 67 | 100 . . . 34 . . Volleys Fired 72 | . 41 10 . 2 3 16 Largest 3 | . 2 2 . 1 3 3 Hottest 144 | . 100 105 . 23 144 144 Shots Fired 126 | . 74 12 . 2 8 30 Gun 105 | . 54 11 . 2 8 30 Cannon 20 | . 20 . . . . . Launcher 1 | . . 1 . . . . Special . | . . . . . . . Kinetic 32 | . 11 . . 2 3 16 Thermal 57 | . 27 11 . . 5 14 Explosive 1 | . . 1 . . . . Electromagnetic 36 | . 36 . . . . . Robot Hit Streak 10 | . 6 9 . 10 2 5 Robot Miss Streak 5 | . 5 1 . 1 2 3 Penetration Max . | . . . . . . . Secondary Targets 3 | . . 1 . . . 2 Max Gunslinging Chain 1 | . . 1 . . . 1 Shots Hit Robots 77 | . 40 10 . 1 6 20 Core Hits 40 | . 20 7 . . 2 11 Critical Hits 1 | . 1 . . . . . Critical Kills . | . . . . . . . Critical Parts Destroyed 1 | . 1 . . . . . Melee Attacks 22 | . . . . . 8 14 Impact . | . . . . . . . Slashing 22 | . . . . . 8 14 Piercing . | . . . . . . . Sneak Attacks 3 | . . . . . 1 2 Combat Hostiles . | . . . . . . . Follow-up Attacks . | . . . . . . . Damage Inflicted 1901 | . 697 260 . 15 256 673 Guns 893 | . 379 135 . 15 48 316 Cannons 158 | . 158 . . . . . Explosions 285 | . 160 125 . . . . Melee 565 | . . . . . 208 357 Ramming . | . . . . . . . Kinetic 242 | . 40 . . 15 14 173 Thermal 672 | . 360 135 . . 34 143 Explosive 125 | . . 125 . . . . Electromagnetic 297 | . 297 . . . . . Impact . | . . . . . . . Slashing 565 | . . . . . 208 357 Piercing . | . . . . . . . Highest Corruption . | . . . . . . . Average Corruption . | . . . . . . . Corruption Purged . | . . . . . . . Overload Shots . | . . . . . . . Overflow Damage 309 | . 12 . . . 156 141 Projectiles 12 | . 12 . . . . . Explosions . | . . . . . . . Melee 297 | . . . . . 156 141 Knockbacks . | . . . . . . . Impact . | . . . . . . . Kinetic . | . . . . . . . Secondary . | . . . . . . . Self-Inflicted Damage 76 | . 52 24 . . . . Shots 2 | . 1 1 . . . . Rammed . | . . . . . . . Targets Rammed . | . . . . . . . Kicked . | . . . . . . . Crushed . | . . . . . . . Highest Temperature 366 | . 366 117 . . 105 144 Average Temperature 96 | . 113 68 . . 57 53 Received Heat Transfer 162 | . 99 27 . . 9 27 Effects 1 | . 1 . . . . . Matter Decay 1 | . 1 . . . . . Siege Activations . | . . . . . . . Robots Corrupted . | . . . . . . . Combat Hostiles . | . . . . . . . Parts Fried 3 | . 3 . . . . . Impact Corruptions . | . . . . . . . Robots Melted . | . . . . . . . Combat Hostiles . | . . . . . . . Parts Melted 1 | . . . . . . 1 Heat Transferred 1388 | . 683 298 . . 74 333 Parts Sabotaged . | . . . . . . . Parts Stolen . | . . . . . . . Parts Stripped . | . . . . . . . Power Chain Reactions 2 | . 2 . . . . . Missiles Intercepted . | . . . . . . . Alert | -11 -10 -10 -10 -9 -8 -8 ------- Run | Scr Mat Min Exi Min Mat Sto Peak Influence 206 | . 206 148 . . 79 163 Initial 43 | . . 43 . . . 22 Average 68 | . 66 131 . . 22 119 Maximum Alert Level 1 | . 1 . . . . . Low Security (%) 99 | 100 99 100 . 100 100 100 Level 1 . | . . . . . . . Level 2 . | . . . . . . . Level 3 . | . . . . . . . Level 4 . | . . . . . . . Level 5 . | . . . . . . . High Security . | . . . . . . . Max Security . | . . . . . . . Squads Dispatched 6 | . . . . . 2 4 Investigation 1 | . . . . . . 1 Extermination . | . . . . . . . Reinforcement 5 | . . . . . 2 3 Assault . | . . . . . . . Garrison . | . . . . . . . Intercept . | . . . . . . . Construction Impeded . | . . . . . . . Haulers Reinforced . | . . . . . . . Stealth | -11 -10 -10 -10 -9 -8 -8 --------- Run | Scr Mat Min Exi Min Mat Sto Distress Signals 7 | . 2 . . . 2 3 Communications Jammed . | . . . . . . . Distress Signals . | . . . . . . . Times Spotted 49 | . 22 5 . . 7 15 Peak Tracking Total 8 | . 5 3 . . 6 8 Tactical Retreats 5 | . 4 . . . 1 . Traps | -11 -10 -10 -10 -9 -8 -8 ------- Run | Scr Mat Min Exi Min Mat Sto Traps Triggered . | . . . . . . . Indirectly . | . . . . . . . Trap Hack Attempts . | . . . . . . . Triggered . | . . . . . . . Disarmed . | . . . . . . . Reprogrammed . | . . . . . . . Reused . | . . . . . . . Traps Extracted . | . . . . . . . Installed . | . . . . . . . Triggered . | . . . . . . . Machines | -11 -10 -10 -10 -9 -8 -8 ---------- Run | Scr Mat Min Exi Min Mat Sto Machines Disabled . | . . . . . . . Max in Single Turn . | . . . . . . . Machines Sabotaged . | . . . . . . . Garrisons Compromised . | . . . . . . . Overloaded Fab Kills . | . . . . . . . Fab Network Shutdowns . | . . . . . . . Hacking | -11 -10 -10 -10 -9 -8 -8 --------- Run | Scr Mat Min Exi Min Mat Sto Machines Accessed 14 | . 3 . 5 . 2 4 Terminals 8 | . 2 . . . 2 4 Fabricators . | . . . . . . . Repair Stations . | . . . . . . . Recycling Units 1 | . 1 . . . . . Scanalyzers . | . . . . . . . Garrison Access . | . . . . . . . Total Hacks 82 | . 9 . 50 . 10 13 Successful 64 | . 5 . 50 . 3 6 Failed 18 | . 4 . . . 7 7 Catastrophic 5 | . 1 . . . 2 2 Database Lockouts . | . . . . . . . Manual 20 | . 2 . 1 . 10 7 Terminals 28 | . 5 . . . 10 13 Fabricators . | . . . . . . . Repair Stations . | . . . . . . . Recycling Units 4 | . 4 . . . . . Scanalyzers . | . . . . . . . Garrison Access . | . . . . . . . Terminal Hacks 55 | . . . 50 . 1 4 Record 49 | . . . 49 . . . Robot Analysis 1 | . . . . . . 1 Open Door 1 | . . . . . . 1 Branch Access Points 1 | . . . . . 1 . Alert Level 1 | . . . . . . 1 Reinforcement Status 1 | . . . . . . 1 EX-Prototype ID Bank 1 | . . . 1 . . . Fabricator Hacks . | . . . . . . . Repair Station Hacks . | . . . . . . . Recycling Unit Hacks 3 | . 3 . . . . . Process 1 | . 1 . . . . . Report Inventory 1 | . 1 . . . . . Retrieve Matter 1 | . 1 . . . . . Scanalyzer . | . . . . . . . Garrison Access Hacks . | . . . . . . . Unauthorized Hacks 6 | . 2 . . . 2 2 Terminals 6 | . 2 . . . 2 2 Botnet 6 | . 2 . . . 2 2 Fabricators . | . . . . . . . Repair Stations . | . . . . . . . Recycling Units . | . . . . . . . Scanalyzers . | . . . . . . . Garrison Access . | . . . . . . . Data Cores Recovered . | . . . . . . . Used . | . . . . . . . Hacking Detections 8 | . 2 . . . 2 4 Full Trace Events 3 | . 1 . . . 1 1 Feedback Events . | . . . . . . . Feedback Blocked . | . . . . . . . Robot Schematics Acquired . | . . . . . . . Robots Built . | . . . . . . . Matter . | . . . . . . . Time . | . . . . . . . Total Robot Build Rating . | . . . . . . . Part Schematics Acquired . | . . . . . . . Parts Built . | . . . . . . . Matter . | . . . . . . . Time . | . . . . . . . Total Part Build Rating . | . . . . . . . Parts Repaired . | . . . . . . . Time . | . . . . . . . Parts Recycled . | . . . . . . . Recycled Matter 235 | . 235 . . . . . Retrieved Matter 235 | . 235 . . . . . Retrieved Components . | . . . . . . . Parts Scanalyzed . | . . . . . . . Part Schematics Acquired . | . . . . . . . Parts Damaged . | . . . . . . . Bothacking | -11 -10 -10 -10 -9 -8 -8 ------------ Run | Scr Mat Min Exi Min Mat Sto Used RIF Installer . | . . . . . . . Robots Hacked . | . . . . . . . Non-combat . | . . . . . . . Combat . | . . . . . . . Robot Hacks Applied . | . . . . . . . Relay Couplers Released . | . . . . . . . Robots Rewired . | . . . . . . . Allies Hacked . | . . . . . . . Hacks Repelled . | . . . . . . . Allies | -11 -10 -10 -10 -9 -8 -8 -------- Run | Scr Mat Min Exi Min Mat Sto Total Allies 5 | . . . . 5 . . Largest Group 5 | . . . . 5 5 . Highest-Rated Group 85 | . . . . 85 85 . Highest-Rated Ally 31 | . . . . 31 31 . Total Orders . | . . . . . . . Ally Attacks 33 | . . . . . 33 . Total Damage 353 | . . . . . 353 . Kills 4 | . . . . . 4 . Allies Corrupted . | . . . . . . . Allies Melted . | . . . . . . . Intel | -11 -10 -10 -10 -9 -8 -8 ------- Run | Scr Mat Min Exi Min Mat Sto Robot Analysis Total 1 | . . . . . . 1 Derelict Logs Recovered 1 | . . . . 1 . . Drone Launches . | . . . . . . . Drone Recoveries . | . . . . . . . Exploration | -11 -10 -10 -10 -9 -8 -8 ------------- Run | Scr Mat Min Exi Min Mat Sto Turns Passed 2171 | 3 514 378 589 288 237 162 Spaces Moved 1544 | 3 331 282 487 232 134 75 Core . | . . . . . . . Treads . | . . . . . . . Legs 195 | 3 192 . . . . . Wheels 1349 | . 139 282 487 232 134 75 Hover . | . . . . . . . Flight . | . . . . . . . Fastest Speed 90 | 120 90 100 120 110 120 110 Average Speed 116 | 120 110 114 120 119 120 115 Slowest Speed 140 | 120 120 120 120 120 120 140 Overloaded Moves . | . . . . . . . Propulsion Burnouts . | . . . . . . . Robots Hopped . | . . . . . . . Cave-ins Triggered . | . . . . . . . Exploration Rate (%) 43 | 2 60 58 92 51 22 22 Regions Visited 6 Branch Regions 4 Pre-discovered Areas 1 | . . . 1 . . . Known Exits Taken 2 | . . . . 1 1 . Unknown Exits Taken 4 | 1 1 1 1 . . . Scrap Searched 5 | . . 2 . 3 . . Spaces Dug 17 | . . . . . 6 11 Terrain Destroyed 30 | . 5 8 . . 6 11 Melee 17 | . . . . . 6 11 Projectile . | . . . . . . . AOE 13 | . 5 8 . . . . Terrain Rammed . | . . . . . . . Walls Destroyed . | . . . . . . . Machines Disabled . | . . . . . . . Actions | -11 -10 -10 -10 -9 -8 -8 --------- Run | Scr Mat Min Exi Min Mat Sto Total 1771 | 2 408 323 492 241 195 110 Wait 71 | . 12 18 . 4 37 . Move 1538 | 2 330 281 486 231 133 75 Hop . | . . . . . . . Pick Up 29 | . 9 7 2 1 7 3 Fast Attach 11 | . 6 2 1 1 1 . Attach 7 | . . 2 . . 4 1 Detach . | . . . . . . . Swap 7 | . 3 2 . . 1 1 Drop 14 | . 7 1 3 2 1 . Fire 72 | . 41 10 . 2 3 16 Melee 22 | . . . . . 8 14 Ram . | . . . . . . . Kick . | . . . . . . . Crush . | . . . . . . . Escape Stasis . | . . . . . . . Rewire . | . . . . . . . Trap . | . . . . . . . Miscellaneous . | . . . . . . . Route ------- -11/Scrapyard -10/Materials (discovered 3 exits: [*Mat x2] / [*Min]) -10/Mines (discovered 3 exits: [*Mat x2] / *Exi) -10/Exiles -9/Mines (discovered 2 exits: *Mat x2) -8/Materials (discovered 2 exits: *Sto x2) -8/Storage History --------- Turn | Location | Event 1 | -11/Scrapyard | Discovered new exit (range 1) 4 | -11/Scrapyard | Entered Materials 262 | -10/Materials | Discovered new exit (range 12) 303 | -10/Materials | Build established: Mutant 452 | -10/Materials | Core integrity fell below 50% 469 | -10/Materials | Discovered new exit (range 16) 507 | -10/Materials | Discovered new exit (range 7) 518 | -10/Materials | Entered Mines 532 | -10/Mines | Met a Derelict bent on vengeance 588 | -10/Mines | Discovered new exit (range 3) 645 | -10/Mines | Lost 3 parts (2n1w) 797 | -10/Mines | Discovered new exit (range 6) 867 | -10/Mines | YI-UF0 nonchalantly dropped a Grenade Launcher on the ground 891 | -10/Mines | Deemed a non-threat by the Exiles lab entrance 891 | -10/Mines | Discovered new exit (range 5) 896 | -10/Mines | Entered Exiles 934 | -10/Exiles | Met 8R-AWN 951 | -10/Exiles | Met EX-HEX 1006 | -10/Exiles | Met EX-DEC 1024 | -10/Exiles | Visited The Gauntlet 1199 | -10/Exiles | Learned location of Zion (-7) 1282 | -10/Exiles | Met EX-BIN 1300 | -10/Exiles | Aligned with FarCom system 1301 | -10/Exiles | Given EX-Vault access code 1357 | -10/Exiles | Opened EX-Vault 1370 | -10/Exiles | Found Longsword +1 1397 | -10/Exiles | Warned to stay clear of 0b10 Research branches 1470 | -10/Exiles | Discovered new exit (range 14) 1485 | -10/Exiles | Left Exiles lab with Longsword +1 1485 | -10/Exiles | Entered Mines 1521 | -9/Mines | Assisted by bots powering up and referring to "LRC-V3" 1732 | -9/Mines | Discovered new exit (range 7) 1744 | -9/Mines | Identified exit to Materials 1773 | -9/Mines | Entered Materials 1773 | -8/Materials | Accompanied by 5 allies 1773 | -8/Materials | Evolved 4 slots: Utility x3, Weapon x1 1778 | -8/Materials | Led the pair of lost Derelicts to an unsafe place 1889 | -8/Materials | Identified exit to Storage 2010 | -8/Materials | Entered Storage 2172 | -8/Storage | Self-destructed Last Messages --------------- Awaiting botnet instructions. >>Open Sealed Heavy Doors opened. 02161_ Imp. Medium Laser destroyed. 02164_ Connecting with Terminal... >>Analysis(I-36 Angel) Downloading analysis... I-36 Angel Tier: 4 The I-36 Angel's remote force field is 33% more effective than the I-25's shield generator, shielding targets from half of all damage where there is enough energy to support the field. Protector class robots are not especially well armored, but in addition to their shield are also strong against more common thermal weaponry, as well as always working in concert with a larger assault force. 02164_ Heat Sink destroyed. 02165_ O-24 Administrator: "IFF HANDSHAKE FAILED. SECURING TERMINAL." 02168_ O-24 Administrator sends out distress signal. 02168_ Sneak attack on A-02 Transporter. 02169_ A-02 Transporter sends out distress signal. Map ----- +----------------------------------------------------+ | ?# !!% % #?????????????????????? | | ?# *%*%!! % #?????????????????????? | | ?######## %####"##### #?????????????????????? | | ????????# #??###????## ##?????????????????????? | | ????????# #??????????? #??????????????????????? | | ????????+ #????????##? #??????????????????????? | | ????????# #?????? #? ???????????????????????? | | ??????### #???? #? #??????????????????????? | | ??????#"" #?? #?h /??????????????????????? | | ??????#"Y # #?h #??????????????????????? | | ??????#"" + """ ""???# #??????????????????????? | | ??????### # """ ""???# #??????????????????????? | | ????????# #??"" "????# #??????????????????????? | | ????????# #???? ????# #??????????????????????? | | ????????# = #??????????# #??????????????????????? | | ????????#!% #??????????# ########???????????????? | | ????????# ! #??????????# ????????????????? | | ????????+ #???######## #???????????????????? | | ????????# #???# ##; #???????????????????? | | ????????# #??##"### ;" ###########?????????? | | ????????# ####"##?##;" ????????? | | ???????## ## ##??##" ????????? | | ???????# + T#???#T a ????????? | | ???????# *h=## ##???#"ss#######+#####??????????? | | ???????# ! ##==#????#"os#??????????????????????? | | ???????# ##==#????#" @#??????????????????????? | | ???????# ##==#????## g g????????????????????? | | ???????###########?????# ###????????????????????? | | ???????????????????????# #??????????????????????? | | ???????????????????????# #??????????????????????? | | ???????????????????????# #??????????????????????? | | ???????????????????????# #??????????????????????? | | ???????????????????????#k #??????????????????????? | | ???????????????????????# #??????????????????????? | | ???????????????????????# ???????????????????????? | | ??????????????????????? ???????????????????????? | | ???????????????????????# ???????????????????????? | | ???????????????????????# ???????????????????????? | | ???????????????????????? ???????????????????????? | | ???????????????????????? ???????????????????????? | | ???????????????????????? ???????????????????????? | | ?????????????????????????????????????????????????? | | ????????????????o???????Y?????????Y??????????????? | | ?????????????????????????????????????????????????? | | ?????????????????????????????????????????????????? | | ?????????????????????????????????????????????????? | | ?????????????????????????????????????????????????? | | ?????????????????????????????????????????????????? | | ?????????????????????????????????????????????????? | | ?????????????????????????????????????????????????? | +----------------------------------------------------+ Best States ------------- Heat Dissipation 41 Energy Generation 12 Energy Capacity 265 Matter Stores 300 Matter Capacity 300 Sight Range 16 Terrain Scan Density 10 Armor Coverage 150 Evasion (%) 42 Targeting Accuracy 5 Item Schematics ----------------- None Robot Schematics ------------------ None Fabricated ------------ Nothing Alien Tech Used ----------------- None Achievements -------------- None Challenges ------------ None Game ------ Seed HackingVortexReplicator Manual? 0 Play Time 00:30:22 Cumulative 67.0 hours Start 2020.10.17 @ 18:11:02 End 2020.10.19 @ 02:06:21 Sessions 4 Manual Loads 0 Difficulty Rogue Special Mode None Game No. 89 Rogue 89 Adventurer 0 Explorer 0 Win Type - Total 0 Types 0/0/0/0/0/0/0/0/0 Lore% 48 Gallery% 54 Achievement% 35 Wizard Run 0 Options --------- ASCII 0 Keyboard 0 Movement Mouse Keybinds 0 Fullscreen 1 Font 24/Smallcaps Map View 76x50 Tactical HUD 1 Map Filters NONE Filters NONE Steam 1 RUN: 423a6603-eea5-4957-973a-c9ec81c88ae1